Cogmind - Beta 10.2 @@@ ROGUE MODE // 2021.08.06 @ 21:06:05 Player: Demise Result: Destroyed by as-35136 with Assembled Blade Performance ------------- Evolutions (0) 0 Regions Visited (2) 400 Robots Destroyed (18) 90 Value Destroyed (265) 265 Prototype IDs (0) 0 Alien Tech Used (0) 0 Bonus (0) 0 TOTAL SCORE: 755 Bonus ------- None Cogmind --------- Core Integrity 0/250 Matter 300/300 Energy 97/100 System Corruption 0% Temperature Cool (0) Movement Core (50) Location -10/Mines Parts ------- > --- POWER (1) -------- (None) > --- PROPULSION (2) --- (None) > --- UTILITY (2) ------ Visual Processing Unit Signal Interpreter > --- WEAPON (2) ------- Small Laser > --- INVENTORY (4) ---- Improved Terrain Scanner Datajack Mining Laser Mining Claw Peak State ------------ > --- POWER ------------ Light Ion Engine > --- PROPULSION ------- (None) > --- UTILITY ---------- Seismic Analyzer Transport Network Coupler > --- WEAPON ----------- Small Laser Assault Rifle > --- INVENTORY -------- Improved Terrain Scanner Mining Laser [Rating: 5] Favorites ----------- Power Light Ion Engine Engine Light Ion Engine Propulsion None Utility Signal Interpreter Device Improved Terrain Scanner Processor Signal Interpreter Weapon Small Laser Energy Gun Small Laser Ballistic Gun Assault Rifle Special Weapon Mining Laser Build | -11 -10 -10 ------- Run | Scr Mat Min Slots Evolved . | . . . Power . | . . . Propulsion . | . . . Utility . | . . . Weapon . | . . . Parts Attached 17 | 3 12 2 Power 1 | . 1 . Engine 1 | . 1 . Core . | . . . Reactor . | . . . Propulsion . | . . . Treads . | . . . Leg . | . . . Wheel . | . . . Hover . | . . . Flight . | . . . Utility 7 | 2 5 . Device 1 | 1 . . Storage . | . . . Processor 6 | 1 5 . Hackware . | . . . Protection . | . . . Artifact . | . . . Weapon 9 | 1 6 2 Energy Gun 5 | . 4 1 Energy Cannon . | . . . Ballistic Gun 3 | 1 1 1 Ballistic Cannon . | . . . Launcher . | . . . Special Weapon 1 | . 1 . Impact Weapon . | . . . Slashing Weapon . | . . . Piercing Weapon . | . . . Special Melee Weapon . | . . . Unidentified Prototypes . | . . . Parts Lost 5 | . 3 2 Power 1 | . 1 . Propulsion . | . . . Utility . | . . . Weapon 4 | . 2 2 Highest Loss Streak 3 | . 3 1 Average Slot Usage (%) 50 | . 52 44 Processor 27 | . 27 28 Energy Gun 14 | . 18 6 Ballistic Gun 6 | . 4 9 Naked Turns . | . . . Heaviest Build 6 | 3 6 3 Greatest Support 3 | 3 3 3 Greatest Overweight (x) 1 | . 1 . Average Overweight (x) . | . . . Largest Inventory Capacity 4 | 4 4 4 Average Capacity 4 | 4 4 4 Most Carried 4 | 2 4 4 Average Carried 2 | 1 2 3 Final Capacity 4 | 4 4 4 Final Carried 4 | 2 3 4 Class Distribution -------------------- 100% | Mutant Dominant Class ---------------- Mutant | -10/Materials Mutant | -10/Mines Resources | -11 -10 -10 ----------- Run | Scr Mat Min Matter Collected 438 | 243 139 56 Remotely . | . . . Salvage Created 559 | 109 347 103 Parts 43 | 8 23 12 Haulers Intercepted 2 | . 2 . Recyclers Shooed . | . . . Parts Field Recycled . | . . . Retrieved Matter . | . . . Parts Self-Destructed . | . . . Prevented . | . . . Kills | -11 -10 -10 ------- Run | Scr Mat Min Combat Hostiles Destroyed 10 | . 4 6 Guns 10 | . 4 6 Classes Destroyed 7 | 2 4 1 Tunneler 2 | 2 . . Hauler 2 | . 2 . Recycler 1 | 1 . . Mechanic 1 | . 1 . Watcher 2 | . 2 . Swarmer 6 | . . 6 Grunt 4 | . 4 . Best Kill Streak 6 | 2 2 6 Combat Bots Only 6 | . 2 6 Max Kills in Single Turn 1 | 1 1 1 Gunslinging . | . . . Exploded . | . . . Melee . | . . . Uniques/NPCs Destroyed . | . . . Combat | -11 -10 -10 -------- Run | Scr Mat Min Damage Taken 705 | . 355 350 Core 279 | . 127 152 Absorbed by Shields . | . . . Core Remaining (%) 100 | 100 . . Volleys Fired 51 | 12 23 16 Largest 2 | 1 2 1 Hottest 100 | 20 100 40 Shots Fired 72 | 12 44 16 Gun 71 | 12 43 16 Cannon . | . . . Launcher . | . . . Special 1 | . 1 . Kinetic 32 | 12 7 13 Thermal 40 | . 37 3 Explosive . | . . . Electromagnetic . | . . . Robot Hit Streak 12 | 5 12 5 Robot Miss Streak 2 | 1 2 2 Penetration Max . | . . . Secondary Targets . | . . . Shots Hit Robots 49 | 9 30 10 Core Hits 32 | 4 19 9 Critical Hits 1 | . 1 . Critical Kills . | . . . Critical Parts Destroyed 1 | . 1 . Melee Attacks . | . . . Impact . | . . . Slashing . | . . . Piercing . | . . . Sneak Attacks . | . . . Combat Hostiles . | . . . Follow-up Attacks . | . . . Damage Inflicted 673 | 123 396 154 Guns 673 | 123 396 154 Cannons . | . . . Explosions . | . . . Melee . | . . . Ramming . | . . . Kinetic 321 | 123 66 132 Thermal 352 | . 330 22 Explosive . | . . . Electromagnetic . | . . . Impact . | . . . Slashing . | . . . Piercing . | . . . Highest Corruption . | . . . Average Corruption . | . . . Corruption Purged . | . . . Overload Shots . | . . . Overflow Damage . | . . . Projectiles . | . . . Explosions . | . . . Melee . | . . . Knockbacks . | . . . Impact . | . . . Kinetic . | . . . Secondary . | . . . Self-Inflicted Damage . | . . . Shots . | . . . Rammed . | . . . Targets Rammed . | . . . Kicked . | . . . Crushed . | . . . Highest Temperature 62 | . 62 . Average Temperature 20 | . 20 . Received Heat Transfer 117 | . 117 . Siege Activations . | . . . Robots Corrupted . | . . . Combat Hostiles . | . . . Parts Fried . | . . . Impact Corruptions . | . . . Robots Melted . | . . . Combat Hostiles . | . . . Parts Melted 2 | . 2 . Heat Transferred 870 | . 820 50 Parts Sabotaged . | . . . Parts Stolen . | . . . Parts Stripped . | . . . Power Chain Reactions . | . . . Missiles Intercepted . | . . . Alert | -11 -10 -10 ------- Run | Scr Mat Min Peak Influence 311 | 15 311 173 Initial 43 | . 9 43 Average 145 | 7 174 125 Maximum Alert Level 1 | . 1 . Low Security (%) 72 | 100 56 100 Level 1 27 | . 43 . Level 2 . | . . . Level 3 . | . . . Level 4 . | . . . Level 5 . | . . . High Security . | . . . Max Security . | . . . Squads Dispatched 5 | . 5 . Investigation 5 | . 5 . Extermination . | . . . Reinforcement . | . . . Assault . | . . . Garrison . | . . . Intercept . | . . . Construction Impeded . | . . . Haulers Reinforced . | . . . Stealth | -11 -10 -10 --------- Run | Scr Mat Min Distress Signals 2 | . 2 . Communications Jammed . | . . . Distress Signals . | . . . Times Spotted 26 | . 16 10 Peak Tracking Total 7 | . 7 6 Tactical Retreats 1 | . 1 . Traps | -11 -10 -10 ------- Run | Scr Mat Min Traps Triggered 3 | . 3 . Indirectly . | . . . Trap Hack Attempts . | . . . Triggered . | . . . Disarmed . | . . . Reprogrammed . | . . . Reused . | . . . Traps Extracted . | . . . Installed . | . . . Triggered . | . . . Machines | -11 -10 -10 ---------- Run | Scr Mat Min Machines Disabled . | . . . Max in Single Turn . | . . . Machines Sabotaged . | . . . Garrisons Compromised . | . . . Overloaded Fab Kills . | . . . Fab Network Shutdowns . | . . . Hacking | -11 -10 -10 --------- Run | Scr Mat Min Machines Accessed 10 | . 9 1 Terminals 8 | . 7 1 Fabricators . | . . . Repair Stations . | . . . Recycling Units 2 | . 2 . Scanalyzers . | . . . Garrison Access . | . . . Total Hacks 33 | . 30 3 Successful 19 | . 18 1 Failed 13 | . 11 2 Catastrophic 1 | . . 1 Database Lockouts 1 | . 1 . Manual 27 | . 24 3 Terminals 26 | . 23 3 Fabricators . | . . . Repair Stations . | . . . Recycling Units 7 | . 7 . Scanalyzers . | . . . Garrison Access . | . . . Terminal Hacks 3 | . 3 . Robot Analysis 2 | . 2 . Terminal Index 1 | . 1 . Fabricator Hacks . | . . . Repair Station Hacks . | . . . Recycling Unit Hacks 2 | . 2 . Retrieve Components 2 | . 2 . Scanalyzer . | . . . Garrison Access Hacks . | . . . Unauthorized Hacks 14 | . 13 1 Terminals 12 | . 11 1 Track 3 | . 3 . Botnet 7 | . 6 1 Operators 2 | . 2 . Fabricators . | . . . Repair Stations . | . . . Recycling Units 2 | . 2 . Tunnel 2 | . 2 . Scanalyzers . | . . . Garrison Access . | . . . Data Cores Recovered . | . . . Used . | . . . Hacking Detections 7 | . 6 1 Full Trace Events 3 | . 2 1 Feedback Events . | . . . Feedback Blocked . | . . . Robot Schematics Acquired . | . . . Robots Built . | . . . Matter . | . . . Time . | . . . Total Robot Build Rating . | . . . Part Schematics Acquired . | . . . Parts Built . | . . . Matter . | . . . Time . | . . . Total Part Build Rating . | . . . Parts Repaired . | . . . Time . | . . . Parts Recycled . | . . . Recycled Matter . | . . . Retrieved Matter . | . . . Retrieved Components 2 | . 2 . Parts Scanalyzed . | . . . Part Schematics Acquired . | . . . Parts Damaged . | . . . Bothacking | -11 -10 -10 ------------ Run | Scr Mat Min Used RIF Installer . | . . . Robots Hacked . | . . . Non-combat . | . . . Combat . | . . . Robot Hacks Applied . | . . . Relay Couplers Released . | . . . Robots Rewired . | . . . Allies Hacked . | . . . Hacks Repelled . | . . . Allies | -11 -10 -10 -------- Run | Scr Mat Min Total Allies . | . . . Largest Group . | . . . Highest-Rated Group . | . . . Highest-Rated Ally . | . . . Total Orders . | . . . Ally Attacks . | . . . Total Damage . | . . . Kills . | . . . Allies Corrupted . | . . . Allies Melted . | . . . Intel | -11 -10 -10 ------- Run | Scr Mat Min Robot Analysis Total 2 | . 2 . Derelict Logs Recovered 2 | . . 2 Drone Launches . | . . . Drone Recoveries . | . . . Exploration | -11 -10 -10 ------------- Run | Scr Mat Min Turns Passed 641 | 63 411 167 Spaces Moved 838 | 32 618 188 Core 838 | 32 618 188 Treads . | . . . Legs . | . . . Wheels . | . . . Hover . | . . . Flight . | . . . Fastest Speed 50 | 50 50 50 Average Speed 50 | 50 50 50 Slowest Speed 100 | 50 100 50 Overloaded Moves . | . . . Propulsion Burnouts . | . . . Robots Hopped . | . . . Cave-ins Triggered . | . . . Exploration Rate (%) 48 | 3 94 47 Regions Visited 2 Branch Regions 1 Pre-discovered Areas 3 | . 2 1 Known Exits Taken 1 | . 1 . Unknown Exits Taken 1 | 1 . . Scrap Searched 1 | . . 1 Spaces Dug 1 | . 1 . Terrain Destroyed 1 | . 1 . Melee . | . . . Projectile 1 | . 1 . AOE . | . . . Terrain Rammed . | . . . Walls Destroyed . | . . . Machines Disabled . | . . . Actions | -11 -10 -10 --------- Run | Scr Mat Min Total 982 | 65 670 247 Wait 66 | 17 9 40 Move 836 | 31 617 188 Hop . | . . . Pick Up 5 | 2 2 1 Fast Attach 12 | 3 7 2 Attach 1 | . 1 . Detach 4 | . 4 . Swap 4 | . 4 . Drop 3 | . 3 . Fire 51 | 12 23 16 Melee . | . . . Ram . | . . . Kick . | . . . Crush . | . . . Escape Stasis . | . . . Rewire . | . . . Trap . | . . . Miscellaneous . | . . . Route ------- -11/Scrapyard -10/Materials (discovered 5 exits: *Mat x3 / *Min x2) -10/Mines (discovered 1 exit: *Mat) History --------- Turn | Location | Event 29 | -11/Scrapyard | Discovered new exit (range 15) 64 | -11/Scrapyard | Entered Materials 176 | -10/Materials | Discovered new exit (range 7) 177 | -10/Materials | Lost 3 parts (1p2w) 217 | -10/Materials | Discovered new exit (range 10) 275 | -10/Materials | Central database locked down 319 | -10/Materials | Build established: Mutant 320 | -10/Materials | Discovered new exit (range 17) 356 | -10/Materials | Discovered new exit (range 12) 409 | -10/Materials | Discovered new exit (range 15) 420 | -10/Materials | Core integrity fell below 50% 475 | -10/Materials | Identified exit to Mines 475 | -10/Materials | Entered Mines 490 | -10/Mines | Learned location of Storage (-7) 532 | -10/Mines | Core integrity fell below 20% 552 | -10/Mines | Discovered new exit (range 8) 553 | -10/Mines | Learned 4 Materials zone layouts 556 | -10/Mines | Identified exit to Materials 567 | -10/Mines | Assembled infested the area 572 | -10/Mines | Assisted by a Guerilla fighting off Assembled 642 | -10/Mines | Destroyed by as-35136 with Assembled Blade Last Messages --------------- 00567_ Found 28 Matter. 00568_ Acquired Sml. Laser. 00569_ Acquired 10 matter. 00570_ Acquired Mining Claw. 00572_ A derelict emerges from the shadows: "You need to get out of here! I've been tracking a group of Assembled to figure out where they're coming from, and they're closing on this area, come on!" 00607_ Lgt. Assault Rifle destroyed. 00608_ U-05 Engineer builds a Wall. 00613_ U-05 Engineer lays Concrete. 00615_ U-05 Engineer builds a Wall. 00619_ U-05 Engineer lays Concrete. 00621_ The unstable cave ceiling collapses. 00621_ U-05 Engineer lays Concrete. 00624_ The unstable cave ceiling collapses. 00624_ U-05 Engineer lays Concrete. 00627_ U-05 Engineer builds a Wall. 00632_ U-05 Engineer lays Concrete. 00633_ The unstable cave ceiling collapses. 00633_ U-05 Engineer lays Concrete. Map ----- +----------------------------------------------------+ | ??????????????????????????????????????? | | ??????????????????????????????????????? | | ??????????????????????????????????????? | | ??????????????????????????????????????? | | ??????????????????????????????????????? | | ??????????????????????????????????????? | | ??????????????????????????????????????? | | ??????????????????????????????????????? | | ??????????????????????????????????????? | | ??????????????????????????????????????? | | ??????????????????????????????????????? | | ??????????????????????????????????????? | | ??????????????????????????????????????? | | ??????????????????????????????????????? | | ??????????????????????????????????????? | | ??????????????????????????????????????? | | ??????????????????????????????????????? | | ########??????????????????????????????? | | # #????????????#?????????????????? | | # !!!! ###?????##?? #?????????????????? | | # !!!! ###### ###a#?????????????????? | | # !!!! #???##????????????? | | # !!!! # #???# ????????????? | | # # ##????# ????????????? | | ?## a #????# ????????????? | | ?## # @ #????# ????????????? | | ?# % ##???## ????????????# | | ## # # ##???## ########????? | | # ######???## ## ##???? | | # # #????## ##??? | | ## #???## ##?? | | ?# ##?## ### | | ?# % #?# ## # | | ?## #?# """ #### | | ??# ##?# """ ##?## | | ??## # # #?## """*=% ##?#### | | ???#### # ##??## """%=== ##???## | | ?????# =% !# #????# =* * #????# | | ?????# = ###????# %% ##????# | | ????#" %## #?????# ####?????# | | ????## # # ##?????# ##????????# | | ?????# ######??????## ##????????# | | ?????# ###?########### ##???????# | | ?????# ### ## ### ### | | ?????# ## ## ## | | ?????# ## < ### ## | | ?????# #?# #### ### | | ?????# #### ### #???# #?? | | ?????# ##??# #????# #?? | | ?????# ##???# """ #?????# #? | +----------------------------------------------------+ Best States ------------- Heat Dissipation 25 Energy Generation 10 Energy Capacity 125 Matter Stores 300 Matter Capacity 300 Sight Range 18 Terrain Scan Range 16 Terrain Scan Density 60 Evasion (%) 50 Item Schematics ----------------- None Robot Schematics ------------------ None Fabricated ------------ Nothing Alien Tech Used ----------------- None Achievements -------------- None Challenges ------------ None Game ------ Seed HellfireCooledSplitter Manual? 0 Play Time 00:13:34 Cumulative 443.3 hours Start 2021.08.06 @ 20:54:24 End 2021.08.06 @ 21:06:05 Sessions 1 Manual Loads 0 Difficulty Rogue Special Mode None Game No. 360 Rogue 360 Adventurer 0 Explorer 0 Win Type - Total 1 Types 0/0/0/1/0/0/0/0/0 Lore% 72 Gallery% 82 Achievement% 62 Wizard Run 0 Options --------- ASCII 0 Keyboard 1 Movement Numpad Keybinds 0 Fullscreen 1 Font 12/Terminus Map View 83x54 Tactical HUD 1 Map Filters NONE Filters NONE Steam 1 RUN: 3e72126d-4831-4ccd-8804-16ab52652a66